[Event "*** Titled Tuesday Blitz"]
[Site "Chess.com"]
[Date "2020.05.05"]
[Round "3"]
[White "maciek_92"]
[Black "Grandmaster2B"]
[Result "1-0"]
[WhiteElo "2711"]
[BlackElo "2481"]
[TimeControl "180+1"]
[EndTime "10:29:40 PDT"]
[Termination "maciek_92 won on time"]

1. e4 {[%clk 0:03:00.9]} 1... c5 {[%clk 0:02:58.6]} 2. Nf3 {[%clk 0:03:00.6]}
2... d6 {[%clk 0:02:57.9]} 3. d4 {[%clk 0:03:00.9]} 3... cxd4 {[%clk 0:02:58.8]}
4. Nxd4 {[%clk 0:03:01.4]} 4... Nf6 {[%clk 0:02:58.8]} 5. Nc3 {[%clk 0:03:02.1]}
5... a6 {[%clk 0:02:58.9]} 6. h3 {[%clk 0:03:01.9]} 6... e5 {[%clk 0:02:53.5]}
7. Nde2 {[%clk 0:03:01.8]} 7... Be6 {[%clk 0:02:51.5]} 8. g4 {[%clk 0:03:00.6]}
8... d5 {[%clk 0:02:49.2]} 9. g5 {[%clk 0:02:54.1]} 9... Nxe4 {[%clk 0:02:44.8]}
10. Nxe4 {[%clk 0:02:47.3]} 10... dxe4 {[%clk 0:02:45.7]} 11. Qxd8+ {[%clk
0:02:47.2]} 11... Kxd8 {[%clk 0:02:46.6]} 12. Bg2 {[%clk 0:02:47.3]} 12... Nc6
{[%clk 0:02:31.1]} 13. Be3 {[%clk 0:02:45]} 13... Kc7 {[%clk 0:02:30.4]} 14.
Bxe4 {[%clk 0:02:43.4]} 14... Rd8 {[%clk 0:02:28.4]} 15. a3 {[%clk 0:02:25.8]}
15... Be7 {[%clk 0:02:04.8]} 16. f4 {[%clk 0:02:03.4]} 16... exf4 {[%clk
0:01:21]} 17. Nxf4 {[%clk 0:01:58.2]} 17... Nd4 {[%clk 0:01:18]} 18. O-O-O
{[%clk 0:00:58]} 18... Bxg5 {[%clk 0:00:46.4]} 19. Kb1 {[%clk 0:00:58]} 19...
Bf6 {[%clk 0:00:39.3]} 20. c3 {[%clk 0:00:52.5]} 20... Nc6 {[%clk 0:00:30.1]}
21. Nxe6+ {[%clk 0:00:34]} 21... fxe6 {[%clk 0:00:31]} 22. Rxd8 {[%clk 0:00:34]}
22... Bxd8 {[%clk 0:00:27.3]} 23. h4 {[%clk 0:00:26.1]} 23... Bf6 {[%clk
0:00:27.1]} 24. h5 {[%clk 0:00:26.6]} 24... h6 {[%clk 0:00:24.5]} 25. Kc2 {[%clk
0:00:26.6]} 25... Rd8 {[%clk 0:00:19.9]} 26. b4 {[%clk 0:00:23.5]} 26... Rc8
{[%clk 0:00:17.8]} 27. Rd1 {[%clk 0:00:19.2]} 27... Rd8 {[%clk 0:00:12.2]} 28.
Re1 {[%clk 0:00:17.5]} 28... Kb8 {[%clk 0:00:06]} 29. a4 {[%clk 0:00:12.2]}
29... Rc8 {[%clk 0:00:05.1]} 30. Bc5 {[%clk 0:00:11.1]} 30... Ne5 {[%clk
0:00:03]} 31. Kb3 {[%clk 0:00:05.9]} 31... Nd7 {[%clk 0:00:03.1]} 32. Bd6+
{[%clk 0:00:05.5]} 32... Ka7 {[%clk 0:00:03]} 33. Re3 {[%clk 0:00:06]} 33... Nb6
{[%clk 0:00:01.9]} 34. Bc5 {[%clk 0:00:04]} 34... Rxc5 {[%clk 0:00:01.2]} 35.
bxc5 {[%clk 0:00:04.1]} 35... Nd7 {[%clk 0:00:01.1]} 36. c6 {[%clk 0:00:04.8]}
1-0

[Event "*** Titled Tuesday Blitz"]
[Site "Chess.com"]
[Date "2020.05.05"]
[Round "3"]
[White "2nd_life"]
[Black "Abund"]
[Result "1-0"]
[WhiteElo "2428"]
[BlackElo "2636"]
[TimeControl "180+1"]
[EndTime "10:29:41 PDT"]
[Termination "2nd_life won on time"]

1. e4 {[%clk 0:03:00.9]} 1... c5 {[%clk 0:02:58.8]} 2. Nf3 {[%clk 0:03:00.7]}
2... Nc6 {[%clk 0:02:59.1]} 3. Bb5 {[%clk 0:03:00.1]} 3... g6 {[%clk 0:02:58.9]}
4. Bxc6 {[%clk 0:03:00.1]} 4... dxc6 {[%clk 0:02:58.9]} 5. d3 {[%clk 0:02:58.6]}
5... Bg7 {[%clk 0:02:59.1]} 6. h3 {[%clk 0:02:57.7]} 6... Nf6 {[%clk 0:02:58.8]}
7. O-O {[%clk 0:02:50.7]} 7... Nd7 {[%clk 0:02:57]} 8. a3 {[%clk 0:02:45.1]}
8... e5 {[%clk 0:02:41.7]} 9. b4 {[%clk 0:02:44]} 9... Qe7 {[%clk 0:02:40.3]}
10. Nbd2 {[%clk 0:02:40.6]} 10... a5 {[%clk 0:02:29.9]} 11. bxc5 {[%clk
0:02:36.2]} 11... Nxc5 {[%clk 0:02:30.6]} 12. a4 {[%clk 0:02:26.8]} 12... b5
{[%clk 0:02:28.3]} 13. axb5 {[%clk 0:01:54.1]} 13... cxb5 {[%clk 0:02:27]} 14.
Ba3 {[%clk 0:01:54.3]} 14... Bb7 {[%clk 0:02:13]} 15. c3 {[%clk 0:01:08.7]}
15... Qc7 {[%clk 0:01:30]} 16. Nb3 {[%clk 0:01:03]} 16... Na4 {[%clk 0:01:19.2]}
17. Rc1 {[%clk 0:00:56.7]} 17... Bf8 {[%clk 0:01:04.9]} 18. Bxf8 {[%clk
0:00:50.5]} 18... Kxf8 {[%clk 0:01:05.1]} 19. d4 {[%clk 0:00:49.9]} 19... Nxc3
{[%clk 0:00:51.2]} 20. Qd2 {[%clk 0:00:38.2]} 20... b4 {[%clk 0:00:51.1]} 21.
Qh6+ {[%clk 0:00:34.9]} 21... Kg8 {[%clk 0:00:42.8]} 22. Nxe5 {[%clk 0:00:34.3]}
22... f6 {[%clk 0:00:38.7]} 23. Ng4 {[%clk 0:00:29.4]} 23... Rf8 {[%clk
0:00:29]} 24. e5 {[%clk 0:00:24.9]} 24... fxe5 {[%clk 0:00:23.4]} 25. dxe5
{[%clk 0:00:24.8]} 25... Qg7 {[%clk 0:00:11.7]} 26. Qe3 {[%clk 0:00:18.9]} 26...
Qe7 {[%clk 0:00:05.6]} 27. Nxa5 {[%clk 0:00:14.9]} 27... Bc8 {[%clk 0:00:04.9]}
28. Nc6 {[%clk 0:00:13]} 28... Qe6 {[%clk 0:00:03.4]} 29. Nxb4 {[%clk
0:00:10.6]} 29... Nd5 {[%clk 0:00:03.1]} 30. Nxd5 {[%clk 0:00:10.5]} 30... Qxd5
{[%clk 0:00:04]} 31. Rxc8 {[%clk 0:00:09]} 31... Qe6 {[%clk 0:00:02.6]} 32. Nf6+
{[%clk 0:00:08.2]} 32... Kg7 {[%clk 0:00:02.8]} 33. Rc7+ {[%clk 0:00:08.6]}
33... Rf7 {[%clk 0:00:03.1]} 34. Rxf7+ {[%clk 0:00:09.2]} 34... Kxf7 {[%clk
0:00:03.5]} 35. Rd1 {[%clk 0:00:10.1]} 35... Qxf6 {[%clk 0:00:03.2]} 36. exf6
{[%clk 0:00:09.9]} 1-0

[Event "*** Titled Tuesday Blitz"]
[Site "Chess.com"]
[Date "2020.05.05"]
[Round "3"]
[White "MisiekZielony"]
[Black "dbrankovic68"]
[Result "1-0"]
[WhiteElo "2154"]
[BlackElo "2461"]
[TimeControl "180+1"]
[EndTime "10:29:41 PDT"]
[Termination "MisiekZielony won on time"]

1. c4 {[%clk 0:03:00.6]} 1... Nf6 {[%clk 0:02:59.9]} 2. Nc3 {[%clk 0:03:00.6]}
2... g6 {[%clk 0:03:00.2]} 3. g3 {[%clk 0:03:00.6]} 3... d6 {[%clk 0:03:00.5]}
4. Bg2 {[%clk 0:03:00.6]} 4... Bg7 {[%clk 0:03:01]} 5. e4 {[%clk 0:03:00.8]}
5... O-O {[%clk 0:03:01.6]} 6. Nge2 {[%clk 0:03:00.9]} 6... e5 {[%clk
0:02:58.1]} 7. O-O {[%clk 0:03:00.8]} 7... Be6 {[%clk 0:02:56.7]} 8. d3 {[%clk
0:03:00.8]} 8... c6 {[%clk 0:02:57.3]} 9. h3 {[%clk 0:03:00.3]} 9... a6 {[%clk
0:02:55.8]} 10. f4 {[%clk 0:02:59.6]} 10... exf4 {[%clk 0:02:53.3]} 11. Bxf4
{[%clk 0:02:53.4]} 11... b5 {[%clk 0:02:34.5]} 12. cxb5 {[%clk 0:02:28.8]} 12...
axb5 {[%clk 0:02:33.9]} 13. b4 {[%clk 0:02:16.9]} 13... Ra3 {[%clk 0:02:24.3]}
14. Qd2 {[%clk 0:02:16.6]} 14... Qe7 {[%clk 0:02:18.9]} 15. Bg5 {[%clk
0:02:09.7]} 15... Nbd7 {[%clk 0:02:15.3]} 16. Kh2 {[%clk 0:01:56]} 16... Qd8
{[%clk 0:02:11.4]} 17. Rf2 {[%clk 0:01:45.1]} 17... Qc7 {[%clk 0:01:58.4]} 18.
Raf1 {[%clk 0:01:41.3]} 18... Nh5 {[%clk 0:01:53.5]} 19. Bh6 {[%clk 0:01:20.2]}
19... Ne5 {[%clk 0:01:40.3]} 20. Bxg7 {[%clk 0:01:10.7]} 20... Nxg7 {[%clk
0:01:38.9]} 21. Nf4 {[%clk 0:00:57.7]} 21... Qb6 {[%clk 0:01:21.2]} 22. Qc1
{[%clk 0:00:46]} 22... Rfa8 {[%clk 0:01:18.4]} 23. Rc2 {[%clk 0:00:38.9]} 23...
Qd4 {[%clk 0:01:05.8]} 24. Rd1 {[%clk 0:00:38.3]} 24... Qxb4 {[%clk 0:01:02.6]}
25. d4 {[%clk 0:00:34.8]} 25... Nc4 {[%clk 0:01:01.6]} 26. d5 {[%clk 0:00:34.9]}
26... cxd5 {[%clk 0:00:43.2]} 27. Nfxd5 {[%clk 0:00:34.1]} 27... Qc5 {[%clk
0:00:25.5]} 28. Nf6+ {[%clk 0:00:33.4]} 28... Kf8 {[%clk 0:00:25.4]} 29. Nxh7+
{[%clk 0:00:32.9]} 29... Ke7 {[%clk 0:00:22.9]} 30. Nd5+ {[%clk 0:00:29.7]}
30... Bxd5 {[%clk 0:00:15.8]} 31. Qg5+ {[%clk 0:00:28]} 31... Kd7 {[%clk
0:00:09]} 32. Nf6+ {[%clk 0:00:27.7]} 32... Kc8 {[%clk 0:00:04.8]} 33. Nxd5
{[%clk 0:00:26.4]} 33... Ne6 {[%clk 0:00:04.8]} 34. Qe7 {[%clk 0:00:23.4]} 34...
Qc6 {[%clk 0:00:03]} 35. e5 {[%clk 0:00:19.9]} 35... R3a7 {[%clk 0:00:02.1]} 36.
Qh4 {[%clk 0:00:16.7]} 36... Kd7 {[%clk 0:00:01.6]} 37. Nf6+ {[%clk 0:00:16.1]}
1-0

[Event "*** Titled Tuesday Blitz"]
[Site "Chess.com"]
[Date "2020.05.05"]
[Round "3"]
[White "AnonymusDonkey"]
[Black "fish7728"]
[Result "1-0"]
[WhiteElo "2315"]
[BlackElo "2059"]
[TimeControl "180+1"]
[EndTime "10:29:44 PDT"]
[Termination "AnonymusDonkey won by checkmate"]

1. e4 {[%clk 0:03:00.9]} 1... c5 {[%clk 0:02:59.8]} 2. Nf3 {[%clk 0:03:01.1]}
2... e6 {[%clk 0:03:00.4]} 3. d4 {[%clk 0:03:01.5]} 3... cxd4 {[%clk 0:03:01.3]}
4. Nxd4 {[%clk 0:03:02.4]} 4... a6 {[%clk 0:03:01.7]} 5. g3 {[%clk 0:03:02.4]}
5... Qc7 {[%clk 0:03:02.6]} 6. Bg2 {[%clk 0:03:02.4]} 6... Nf6 {[%clk
0:03:00.9]} 7. O-O {[%clk 0:03:02.3]} 7... Be7 {[%clk 0:02:59.6]} 8. c4 {[%clk
0:02:56.2]} 8... O-O {[%clk 0:02:57.2]} 9. Nc3 {[%clk 0:02:53.6]} 9... d6 {[%clk
0:02:56.6]} 10. Be3 {[%clk 0:02:53.2]} 10... Nbd7 {[%clk 0:02:54.1]} 11. Rc1
{[%clk 0:02:52.6]} 11... Rb8 {[%clk 0:02:43.8]} 12. f4 {[%clk 0:02:46.4]} 12...
Re8 {[%clk 0:02:42.2]} 13. g4 {[%clk 0:02:40.7]} 13... e5 {[%clk 0:02:39.3]} 14.
Nf5 {[%clk 0:02:35.3]} 14... exf4 {[%clk 0:02:38.1]} 15. Bxf4 {[%clk 0:02:27.1]}
15... Ne5 {[%clk 0:02:37.5]} 16. g5 {[%clk 0:02:18.5]} 16... Nfg4 {[%clk
0:02:19.7]} 17. Nxe7+ {[%clk 0:01:50]} 17... Rxe7 {[%clk 0:02:17.6]} 18. Nd5
{[%clk 0:01:49]} 18... Qc5+ {[%clk 0:02:13.6]} 19. Kh1 {[%clk 0:01:48.3]} 19...
Re8 {[%clk 0:02:10.9]} 20. Qe2 {[%clk 0:01:31.2]} 20... Nc6 {[%clk 0:02:04.6]}
21. h3 {[%clk 0:01:20.9]} 21... Nge5 {[%clk 0:02:04]} 22. Be3 {[%clk 0:01:17.4]}
22... Qa5 {[%clk 0:01:56.6]} 23. b4 {[%clk 0:01:00.3]} 23... Nxb4 {[%clk
0:01:45.1]} 24. Bd2 {[%clk 0:00:58]} 24... Qxa2 {[%clk 0:01:32.4]} 25. Nxb4
{[%clk 0:00:56.5]} 25... Qb3 {[%clk 0:01:20.4]} 26. Nd5 {[%clk 0:00:49.8]} 26...
Bxh3 {[%clk 0:01:16.8]} 27. Rc3 {[%clk 0:00:47.1]} 27... Bxg2+ {[%clk
0:01:16.2]} 28. Qxg2 {[%clk 0:00:47.1]} 28... Qa2 {[%clk 0:01:08.3]} 29. Bf4
{[%clk 0:00:36.7]} 29... Qxg2+ {[%clk 0:00:52]} 30. Kxg2 {[%clk 0:00:37.6]}
30... b5 {[%clk 0:00:52]} 31. cxb5 {[%clk 0:00:34.3]} 31... axb5 {[%clk
0:00:46.1]} 32. Rc7 {[%clk 0:00:31.7]} 32... Rf8 {[%clk 0:00:38.8]} 33. Bxe5
{[%clk 0:00:31.1]} 33... dxe5 {[%clk 0:00:38.9]} 34. Ne7+ {[%clk 0:00:31.5]}
34... Kh8 {[%clk 0:00:39.1]} 35. Nc6 {[%clk 0:00:31.9]} 35... Rb6 {[%clk
0:00:34]} 36. Rfxf7 {[%clk 0:00:30.3]} 36... Rg8 {[%clk 0:00:26]} 37. Ne7 {[%clk
0:00:30.2]} 37... b4 {[%clk 0:00:21.3]} 38. Nxg8 {[%clk 0:00:29.5]} 38... b3
{[%clk 0:00:21.5]} 39. Ne7 {[%clk 0:00:25.1]} 39... Rb8 {[%clk 0:00:19.1]} 40.
Rc1 {[%clk 0:00:22.5]} 40... b2 {[%clk 0:00:19.1]} 41. Rb1 {[%clk 0:00:23]}
41... h6 {[%clk 0:00:19.7]} 42. g6 {[%clk 0:00:22.7]} 42... Rd8 {[%clk
0:00:12.4]} 43. Rbf1 {[%clk 0:00:22.1]} 43... Rd2+ {[%clk 0:00:12]} 44. Kh3
{[%clk 0:00:21.8]} 44... Rf2 {[%clk 0:00:08.9]} 45. R1xf2 {[%clk 0:00:20.6]}
45... b1=Q {[%clk 0:00:09.8]} 46. Rf8# {[%clk 0:00:21.1]} 1-0

[Event "*** Titled Tuesday Blitz"]
[Site "Chess.com"]
[Date "2020.05.05"]
[Round "3"]
[White "Rodalquilar"]
[Black "MarcoCorvi"]
[Result "1-0"]
[WhiteElo "2640"]
[BlackElo "2239"]
[TimeControl "180+1"]
[EndTime "10:29:45 PDT"]
[Termination "Rodalquilar won by resignation"]

1. e4 {[%clk 0:02:04.6]} 1... c5 {[%clk 0:02:58]} 2. Nc3 {[%clk 0:02:03.5]} 2...
g6 {[%clk 0:02:57.2]} 3. d4 {[%clk 0:02:02.3]} 3... cxd4 {[%clk 0:02:58.1]} 4.
Qxd4 {[%clk 0:02:02.8]} 4... Nf6 {[%clk 0:02:56.7]} 5. Bb5 {[%clk 0:02:02.9]}
5... a6 {[%clk 0:02:49.4]} 6. e5 {[%clk 0:02:02.5]} 6... axb5 {[%clk 0:02:46.3]}
7. exf6 {[%clk 0:02:02.6]} 7... exf6 {[%clk 0:02:45.1]} 8. Nd5 {[%clk
0:01:56.4]} 8... Be7 {[%clk 0:02:31.8]} 9. Bh6 {[%clk 0:01:53.5]} 9... Nc6
{[%clk 0:02:29]} 10. Qe3 {[%clk 0:01:40]} 10... Ne5 {[%clk 0:01:57.1]} 11. h3
{[%clk 0:01:26]} 11... Qa5+ {[%clk 0:01:43.8]} 12. c3 {[%clk 0:01:17.1]} 12...
b4 {[%clk 0:01:43.9]} 13. Nxe7 {[%clk 0:01:17]} 13... bxc3 {[%clk 0:01:35.9]}
14. bxc3 {[%clk 0:01:11.5]} 14... Kxe7 {[%clk 0:01:29.5]} 15. f4 {[%clk
0:01:11.6]} 15... Re8 {[%clk 0:01:29.1]} 16. fxe5 {[%clk 0:01:10.2]} 16... Kd8
{[%clk 0:01:29.3]} 17. Nf3 {[%clk 0:01:09.1]} 17... fxe5 {[%clk 0:01:07.5]} 18.
Bg5+ {[%clk 0:01:09]} 18... Kc7 {[%clk 0:01:02.2]} 19. O-O {[%clk 0:01:09.2]}
19... Ra6 {[%clk 0:00:56.9]} 20. Nd2 {[%clk 0:01:05.9]} 20... f5 {[%clk
0:00:53.7]} 21. Nb3 {[%clk 0:00:56.8]} 21... Qb6 {[%clk 0:00:46.1]} 22. Qxb6+
{[%clk 0:00:53.5]} 22... Rxb6 {[%clk 0:00:46.6]} 23. c4 {[%clk 0:00:51.8]} 23...
Rc6 {[%clk 0:00:45.9]} 24. c5 {[%clk 0:00:51.8]} 24... b6 {[%clk 0:00:42.1]} 25.
cxb6+ {[%clk 0:00:52.2]} 25... Kxb6 {[%clk 0:00:40.5]} 26. Be3+ {[%clk
0:00:52.5]} 26... Kc7 {[%clk 0:00:39.8]} 27. Na5 {[%clk 0:00:51.9]} 27... Rc2
{[%clk 0:00:36.9]} 28. Rfc1 {[%clk 0:00:51.1]} 28... Rxc1+ {[%clk 0:00:36.7]}
29. Rxc1+ {[%clk 0:00:52]} 29... Kd8 {[%clk 0:00:36.9]} 30. Bc5 {[%clk
0:00:46.8]} 30... d5 {[%clk 0:00:34.9]} 31. Bb6+ {[%clk 0:00:43.8]} 31... Kd7
{[%clk 0:00:35.1]} 32. Rc7+ {[%clk 0:00:27.8]} 32... Ke6 {[%clk 0:00:34.9]} 33.
Rxh7 {[%clk 0:00:28.3]} 33... d4 {[%clk 0:00:35]} 34. Rg7 {[%clk 0:00:21]} 34...
d3 {[%clk 0:00:33.6]} 35. Rxg6+ {[%clk 0:00:18.8]} 35... Kd5 {[%clk 0:00:33.7]}
36. Bc7 {[%clk 0:00:18.8]} 36... Be6 {[%clk 0:00:31.2]} 37. Nb3 {[%clk
0:00:18.2]} 37... e4 {[%clk 0:00:30]} 38. Kf2 {[%clk 0:00:16]} 38... f4 {[%clk
0:00:29.2]} 39. Rg5+ {[%clk 0:00:15.5]} 39... Kc6 {[%clk 0:00:24.3]} 40. Rc5+
{[%clk 0:00:15.3]} 40... Kd7 {[%clk 0:00:22]} 41. Bxf4 {[%clk 0:00:15.5]} 41...
Bxb3 {[%clk 0:00:21.6]} 42. axb3 {[%clk 0:00:14.8]} 42... Rf8 {[%clk 0:00:22.3]}
43. g3 {[%clk 0:00:14.6]} 43... d2 {[%clk 0:00:22.5]} 44. Rd5+ {[%clk
0:00:14.7]} 44... Kc6 {[%clk 0:00:22.4]} 45. Rxd2 {[%clk 0:00:15.6]} 45... Kb5
{[%clk 0:00:21.2]} 46. Ke3 {[%clk 0:00:15.9]} 46... Kb4 {[%clk 0:00:21.2]} 47.
Rd4+ {[%clk 0:00:16.1]} 47... Kxb3 {[%clk 0:00:21.8]} 48. Rxe4 {[%clk 0:00:17]}
48... Kc3 {[%clk 0:00:21.9]} 49. h4 {[%clk 0:00:17.2]} 1-0

[Event "*** Titled Tuesday Blitz"]
[Site "Chess.com"]
[Date "2020.05.05"]
[Round "3"]
[White "dopolian"]
[Black "Vuk2000"]
[Result "0-1"]
[WhiteElo "2403"]
[BlackElo "2632"]
[TimeControl "180+1"]
[EndTime "10:29:46 PDT"]
[Termination "Vuk2000 won by resignation"]

1. e4 {[%clk 0:03:00.9]} 1... e6 {[%clk 0:02:58.6]} 2. d4 {[%clk 0:03:00.5]}
2... d5 {[%clk 0:02:58.8]} 3. Nd2 {[%clk 0:03:00.6]} 3... Be7 {[%clk 0:02:57.5]}
4. Ngf3 {[%clk 0:02:59.5]} 4... Nf6 {[%clk 0:02:56.8]} 5. Bd3 {[%clk 0:02:54.9]}
5... c5 {[%clk 0:02:51.7]} 6. dxc5 {[%clk 0:02:50.1]} 6... a5 {[%clk 0:02:50.7]}
7. Qe2 {[%clk 0:02:48.8]} 7... O-O {[%clk 0:02:44.3]} 8. O-O {[%clk 0:02:46]}
8... Na6 {[%clk 0:02:43.3]} 9. e5 {[%clk 0:02:43.3]} 9... Nd7 {[%clk 0:02:42.9]}
10. Nd4 {[%clk 0:02:36.3]} 10... Ndxc5 {[%clk 0:02:33.4]} 11. f4 {[%clk
0:02:34.6]} 11... Nb4 {[%clk 0:02:17.8]} 12. N2f3 {[%clk 0:02:21.6]} 12... b6
{[%clk 0:02:13.3]} 13. Bb5 {[%clk 0:02:12.7]} 13... Ne4 {[%clk 0:01:49.1]} 14.
c3 {[%clk 0:02:05.4]} 14... Na6 {[%clk 0:01:48.2]} 15. Nc6 {[%clk 0:02:00.1]}
15... Bc5+ {[%clk 0:01:46.1]} 16. Be3 {[%clk 0:01:44.1]} 16... Qc7 {[%clk
0:01:40.9]} 17. Ncd4 {[%clk 0:01:05]} 17... Nb8 {[%clk 0:01:04.7]} 18. a4 {[%clk
0:00:48.7]} 18... Bd7 {[%clk 0:01:01.8]} 19. Rad1 {[%clk 0:00:45.3]} 19... Bxb5
{[%clk 0:01:01.1]} 20. Qxb5 {[%clk 0:00:43.4]} 20... Nc6 {[%clk 0:00:55.6]} 21.
Kh1 {[%clk 0:00:37.9]} 21... Nxd4 {[%clk 0:00:54.3]} 22. Nxd4 {[%clk 0:00:31.4]}
22... Rfc8 {[%clk 0:00:48.6]} 23. Rf3 {[%clk 0:00:29.5]} 23... Bxd4 {[%clk
0:00:48.4]} 24. Bxd4 {[%clk 0:00:29.6]} 24... Qc4 {[%clk 0:00:48.1]} 25. Qxc4
{[%clk 0:00:20.9]} 25... Rxc4 {[%clk 0:00:46.9]} 26. Ra1 {[%clk 0:00:15.2]}
26... Nd2 {[%clk 0:00:32.6]} 27. Rd3 {[%clk 0:00:09.3]} 27... Nb3 {[%clk
0:00:32.5]} 28. Ra3 {[%clk 0:00:08.4]} 28... Nxd4 {[%clk 0:00:29.3]} 29. Rxd4
{[%clk 0:00:08.9]} 29... Rxd4 {[%clk 0:00:29.6]} 30. cxd4 {[%clk 0:00:09.4]}
30... Rc8 {[%clk 0:00:29.5]} 31. Rc3 {[%clk 0:00:06.3]} 31... Rxc3 {[%clk
0:00:18.9]} 32. bxc3 {[%clk 0:00:07.2]} 32... Kf8 {[%clk 0:00:18.9]} 33. Kg1
{[%clk 0:00:07.4]} 33... b5 {[%clk 0:00:15.2]} 34. axb5 {[%clk 0:00:04.2]} 34...
Ke8 {[%clk 0:00:15.1]} 35. b6 {[%clk 0:00:01.9]} 35... Kd8 {[%clk 0:00:14.6]}
36. c4 {[%clk 0:00:02.1]} 36... a4 {[%clk 0:00:12.4]} 37. cxd5 {[%clk
0:00:01.3]} 37... exd5 {[%clk 0:00:11.9]} 38. f5 {[%clk 0:00:02]} 38... a3
{[%clk 0:00:12.2]} 39. b7 {[%clk 0:00:02.1]} 39... Kc7 {[%clk 0:00:11.9]} 40. e6
{[%clk 0:00:03]} 40... fxe6 {[%clk 0:00:11.9]} 41. fxe6 {[%clk 0:00:03.2]} 41...
a2 {[%clk 0:00:12.1]} 0-1

[Event "*** Titled Tuesday Blitz"]
[Site "Chess.com"]
[Date "2020.05.05"]
[Round "3"]
[White "cassoulet"]
[Black "Kislov_Oleg"]
[Result "0-1"]
[WhiteElo "2583"]
[BlackElo "2331"]
[TimeControl "180+1"]
[EndTime "10:29:46 PDT"]
[Termination "Kislov_Oleg won on time"]

1. e4 {[%clk 0:03:00.9]} 1... e6 {[%clk 0:03:00]} 2. d4 {[%clk 0:02:55.3]} 2...
d5 {[%clk 0:02:59.9]} 3. Bd3 {[%clk 0:02:56.2]} 3... Nf6 {[%clk 0:02:59.1]} 4.
e5 {[%clk 0:02:48.9]} 4... Nfd7 {[%clk 0:02:58]} 5. c3 {[%clk 0:02:49.5]} 5...
c5 {[%clk 0:02:57.3]} 6. Ne2 {[%clk 0:02:48.5]} 6... Nc6 {[%clk 0:02:54.4]} 7.
Nd2 {[%clk 0:02:47.2]} 7... cxd4 {[%clk 0:02:53.4]} 8. cxd4 {[%clk 0:02:48.1]}
8... f6 {[%clk 0:02:52.9]} 9. exf6 {[%clk 0:02:47.8]} 9... Nxf6 {[%clk
0:02:52.9]} 10. Nf3 {[%clk 0:02:48.7]} 10... Bd6 {[%clk 0:02:52.6]} 11. O-O
{[%clk 0:02:48.1]} 11... O-O {[%clk 0:02:51.6]} 12. Ng3 {[%clk 0:02:42.8]} 12...
Qc7 {[%clk 0:02:45.2]} 13. Bg5 {[%clk 0:02:34.1]} 13... e5 {[%clk 0:02:40.5]}
14. dxe5 {[%clk 0:02:19.7]} 14... Nxe5 {[%clk 0:02:37.5]} 15. Rc1 {[%clk
0:02:14.4]} 15... Qf7 {[%clk 0:02:10.9]} 16. Nxe5 {[%clk 0:02:04.1]} 16... Bxe5
{[%clk 0:02:10.7]} 17. Qe2 {[%clk 0:01:58.2]} 17... Bd6 {[%clk 0:01:59.2]} 18.
Qf3 {[%clk 0:01:49.1]} 18... Bg4 {[%clk 0:01:55.5]} 19. Qe3 {[%clk 0:01:34.3]}
19... b6 {[%clk 0:01:47.6]} 20. Nf5 {[%clk 0:01:19.6]} 20... Bc5 {[%clk
0:01:41.8]} 21. Qg3 {[%clk 0:01:08.5]} 21... Bxf5 {[%clk 0:01:37.5]} 22. Bxf5
{[%clk 0:01:07.7]} 22... Nh5 {[%clk 0:01:37.5]} 23. Bxh7+ {[%clk 0:00:56.8]}
23... Kxh7 {[%clk 0:01:32.2]} 24. Qh4 {[%clk 0:00:57]} 24... Kg8 {[%clk
0:01:28.3]} 25. b4 {[%clk 0:00:55.6]} 25... Bd6 {[%clk 0:01:20.5]} 26. a3 {[%clk
0:00:55.5]} 26... Nf4 {[%clk 0:01:07.5]} 27. Bxf4 {[%clk 0:00:52.6]} 27... Qxf4
{[%clk 0:01:04.4]} 28. Qh3 {[%clk 0:00:51.6]} 28... Rf6 {[%clk 0:01:02.4]} 29.
g3 {[%clk 0:00:49.6]} 29... Qf3 {[%clk 0:00:56.4]} 30. Rce1 {[%clk 0:00:42.7]}
30... Raf8 {[%clk 0:00:54.8]} 31. Qh4 {[%clk 0:00:35.2]} 31... Bf4 {[%clk
0:00:35.2]} 32. Qh3 {[%clk 0:00:14.2]} 32... Bd2 {[%clk 0:00:30.1]} 33. Re7
{[%clk 0:00:11.5]} 33... Bc3 {[%clk 0:00:25.8]} 34. Qh4 {[%clk 0:00:07.9]} 34...
d4 {[%clk 0:00:15.7]} 35. Qg5 {[%clk 0:00:07.4]} 35... R6f7 {[%clk 0:00:15.8]}
36. Rxf7 {[%clk 0:00:07]} 36... Qxf7 {[%clk 0:00:11.9]} 0-1